Cogmind - Beta 13 @@@ ROGUE MODE // 2024.04.10 @ 23:11:42 Player: ILikeVoltron Result: Destroyed by G-34 Mercenary with Small Laser Performance ------------- Evolutions (0) 0 Regions Visited (1) 200 Robots Destroyed (6) 30 Value Destroyed (153) 153 Prototype IDs (0) 0 Alien Tech Used (0) 0 Bonus (0) 0 TOTAL SCORE: 383 Bonus ------- None Cogmind --------- Core Integrity 0/250 Matter 290/300 Energy 46/100 System Corruption 0% Temperature Cool (6) Movement Core (250) Ox4 Location -10/Materials Parts ------- > --- POWER (1) -------- (None) > --- PROPULSION (2) --- (None) > --- UTILITY (2) ------ High-capacity Storage Unit Weight Redist. System > --- WEAPON (2) ------- Hammer > --- INVENTORY (20) --- Ion Engine Light Treads Aluminum Leg Aluminum Leg High-capacity Matter Pod (66) Targeting Computer Light Armor Plating Datajack Peak State ------------ > --- POWER ------------ Light Nuclear Core > --- PROPULSION ------- Light Treads Light Treads > --- UTILITY ---------- High-capacity Storage Unit Weight Redist. System > --- WEAPON ----------- Light Assault Rifle Datajack > --- INVENTORY -------- Ion Engine Light Treads Aluminum Leg Aluminum Leg High-capacity Matter Pod Targeting Computer Light Armor Plating Small Laser [Rating: 10] Favorites ----------- Power Light Nuclear Core Engine Ion Engine Power Core Light Nuclear Core Propulsion Aluminum Leg Treads Light Treads Leg Aluminum Leg Utility High-capacity Storage Unit Device Weight Redist. System Storage High-capacity Storage Unit Processor Targeting Computer Weapon Light Assault Rifle Energy Gun Small Laser Ballistic Gun Light Assault Rifle Impact Weapon Hammer Special Melee Weapon Datajack Build | -11 -10 ------- Run | Yrd Mat Slots Evolved . | . . Power . | . . Propulsion . | . . Utility . | . . Weapon . | . . Parts Attached 11 | . 11 Power 2 | . 2 Engine 1 | . 1 Core 1 | . 1 Reactor . | . . Propulsion 2 | . 2 Treads 2 | . 2 Leg . | . . Wheel . | . . Hover . | . . Flight . | . . Utility 3 | . 3 Device 1 | . 1 Storage 1 | . 1 Processor 1 | . 1 Hackware . | . . Protection . | . . Artifact . | . . Weapon 4 | . 4 Energy Gun 2 | . 2 Energy Cannon . | . . Ballistic Gun . | . . Ballistic Cannon . | . . Launcher . | . . Special Weapon . | . . Impact Weapon 1 | . 1 Slashing Weapon . | . . Piercing Weapon . | . . Special Melee Weapon 1 | . 1 Unidentified Prototypes . | . . Parts Lost 6 | . 6 Power 1 | . 1 Propulsion 2 | . 2 Utility . | . . Weapon 3 | . 3 Highest Loss Streak 3 | . 3 To Critical Strikes . | . . Average Slot Usage (%) 90 | . 90 Engine 3 | . 3 Core 9 | . 9 Treads 12 | . 12 Leg 13 | . 13 Device 7 | . 7 Storage 14 | . 14 Processor 5 | . 5 Energy Gun 8 | . 8 Ballistic Gun 11 | . 11 Special Melee Weapon 3 | . 3 Naked Turns . | . . Heaviest Build 47 | 12 47 Greatest Support 46 | 20 46 Greatest Overweight (x) 4 | . 4 Average Overweight (x) . | . . Largest Inventory Capacity 20 | . 20 Average Capacity 14 | . 14 Most Carried 8 | . 8 Average Carried 7 | . 7 Final Capacity 20 | 8 20 Final Carried 8 | 6 8 Class Distribution -------------------- 100% | Mutant Dominant Class ---------------- Mutant | -10/Materials Resources | -11 -10 ----------- Run | Yrd Mat Matter Collected 392 | 187 205 Remotely . | . . Salvage Created 309 | . 309 Parts 15 | . 15 Haulers Intercepted 2 | . 2 Recyclers Shooed 1 | . 1 Parts Field Recycled . | . . Retrieved Matter . | . . Parts Self-Destructed . | . . Prevented . | . . Kills | -11 -10 ------- Run | Yrd Mat Combat Hostiles Destroyed 4 | . 4 Guns 4 | . 4 Classes Destroyed 2 | . 2 Hauler 2 | . 2 Grunt 4 | . 4 Best Kill Streak 1 | . 1 Combat Bots Only 1 | . 1 Max Kills in Single Turn 1 | . 1 Gunslinging . | . . Exploded . | . . Melee . | . . Uniques/NPCs Destroyed . | . . Combat | -11 -10 -------- Run | Yrd Mat Hostile Shots Fired 114 | . 114 Missed 31 | . 31 Damage Taken 941 | . 941 Core 256 | . 256 Absorbed by Shields . | . . Core Remaining (%) 100 | 100 . Volleys Fired 51 | . 51 Largest 2 | . 2 Hottest 60 | . 60 Shots Fired 82 | . 82 Gun 82 | . 82 Cannon . | . . Launcher . | . . Special . | . . Kinetic 51 | . 51 Thermal 23 | . 23 Explosive . | . . Electromagnetic 8 | . 8 Robot Hit Streak 12 | . 12 Robot Miss Streak 3 | . 3 Penetration Max . | . . Secondary Targets 1 | . 1 Max Gunslinging Chain 1 | . 1 Shots Hit Robots 59 | . 59 Core Hits 14 | . 14 Critical Kills 1 | . 1 Critical Parts Destroyed . | . . Critical Strikes 1 | . 1 Destroy 1 | . 1 Melee Attacks 3 | . 3 Impact 2 | . 2 Slashing . | . . Piercing . | . . Sneak Attacks . | . . Combat Hostiles . | . . Follow-up Attacks . | . . Damage Inflicted 507 | . 507 Guns 507 | . 507 Cannons . | . . Explosions . | . . Melee . | . . Ramming . | . . Kinetic 267 | . 267 Thermal 173 | . 173 Explosive . | . . Electromagnetic 67 | . 67 Impact . | . . Slashing . | . . Piercing . | . . Highest Corruption . | . . Average Corruption . | . . Corruption Purged . | . . Corruption Blocked . | . . Overload Shots . | . . Overflow Damage . | . . Projectiles . | . . Explosions . | . . Melee . | . . Knockbacks . | . . Impact . | . . Kinetic . | . . Secondary . | . . Self-Inflicted Damage . | . . Shots . | . . Rammed . | . . Targets Rammed . | . . Kicked . | . . Crushed . | . . Highest Temperature 84 | . 84 Average Temperature 27 | . 27 Received Heat Transfer 513 | . 513 Siege Activations . | . . Robots Corrupted . | . . Combat Hostiles . | . . Parts Fried 1 | . 1 Impact Corruptions . | . . Robots Melted . | . . Combat Hostiles . | . . Parts Melted 1 | . 1 Heat Transferred 400 | . 400 Parts Sabotaged . | . . Parts Stolen . | . . Parts Stripped . | . . Power Chain Reactions . | . . Alert | -11 -10 ------- Run | Yrd Mat Peak Influence 133 | . 133 Initial . | . . Average 42 | . 42 Maximum Alert Level . | . . Low Security (%) 100 | . 100 Level 1 . | . . Level 2 . | . . Level 3 . | . . Level 4 . | . . Level 5 . | . . High Security . | . . Max Security . | . . Squads Dispatched 2 | . 2 Investigation . | . . Extermination . | . . Reinforcement 2 | . 2 Assault . | . . Garrison . | . . Intercept . | . . Searches Triggered . | . . Construction Impeded . | . . Haulers Reinforced . | . . Active Scanning Responses . | . . Cargo Convoy Interrupts . | . . Stealth | -11 -10 --------- Run | Yrd Mat Distress Signals . | . . Communications Jammed . | . . Distress Signals . | . . Times Spotted 13 | . 13 Peak Tracking Total 4 | . 4 Tactical Retreats . | . . Traps | -11 -10 ------- Run | Yrd Mat Traps Triggered . | . . Indirectly . | . . Trap Hack Attempts . | . . Triggered . | . . Disarmed . | . . Reprogrammed . | . . Reused . | . . Traps Extracted . | . . Installed . | . . Triggered . | . . Machines | -11 -10 ---------- Run | Yrd Mat Machines Disabled . | . . Max in Single Turn . | . . Machines Repaired . | . . Machines Dismantled . | . . Machines Sabotaged . | . . Overloaded Fab Kills . | . . Hacking | -11 -10 --------- Run | Yrd Mat Machines Accessed 4 | . 4 Terminals 3 | . 3 Fabricators . | . . Repair Stations . | . . Recycling Units 1 | . 1 Scanalyzers . | . . Garrison Access . | . . Total Hacks 8 | . 8 Successful 2 | . 2 Failed 6 | . 6 Catastrophic 1 | . 1 Database Lockouts . | . . Manual 3 | . 3 Terminals 6 | . 6 Fabricators . | . . Repair Stations . | . . Recycling Units 2 | . 2 Scanalyzers . | . . Garrison Access . | . . Terminal Hacks 1 | . 1 Hauler Manifests 1 | . 1 Fabricator Hacks . | . . Repair Station Hacks . | . . Recycling Unit Hacks 1 | . 1 Report Inventory 1 | . 1 Scanalyzer . | . . Garrison Access Hacks . | . . Unauthorized Hacks . | . . Terminals . | . . Fabricators . | . . Repair Stations . | . . Recycling Units . | . . Scanalyzers . | . . Garrison Access . | . . Data Cores Recovered . | . . Used . | . . Hacking Detections 4 | . 4 Full Trace Events . | . . Feedback Events . | . . Feedback Blocked . | . . Robot Schematics Acquired . | . . Robots Built . | . . Authchips . | . . Time . | . . Total Robot Build Rating . | . . Part Schematics Acquired . | . . Parts Built . | . . Authchips . | . . Time . | . . Total Part Build Rating . | . . Parts Repaired . | . . Time . | . . Parts Recycled . | . . Recycled Matter . | . . Retrieved Matter . | . . Retrieved Components . | . . Parts Scanalyzed . | . . Part Schematics Acquired . | . . Parts Damaged . | . . Bothacking | -11 -10 ------------ Run | Yrd Mat Used RIF Installer . | . . Robots Hacked 1 | . 1 Non-combat 1 | . 1 Combat . | . . Robot Hacks Applied 1 | . 1 find_recycling 1 | . 1 Relay Couplers Released . | . . Fabnet Peak Effective % . | . . Robots Rewired . | . . Allies Hacked . | . . Hacks Repelled . | . . Allies | -11 -10 -------- Run | Yrd Mat Total Allies . | . . Largest Group . | . . Highest-Rated Group . | . . Highest-Rated Ally . | . . Total Orders . | . . Ally Attacks . | . . Total Damage . | . . Kills . | . . Allies Corrupted . | . . Allies Melted . | . . Intel | -11 -10 ------- Run | Yrd Mat Robot Analysis Total . | . . Derelict Logs Recovered . | . . Drone Launches . | . . Drone Recoveries . | . . Exploration | -11 -10 ------------- Run | Yrd Mat Turns Passed 854 | . 854 Spaces Moved 340 | 1 339 Core 10 | . 10 Treads 153 | . 153 Legs 177 | 1 176 Wheels . | . . Hover . | . . Flight . | . . Fastest Speed 120 | 120 120 Average Speed 169 | 120 169 Slowest Speed 260 | 120 260 Overloaded Moves . | . . Propulsion Burnouts . | . . Robots Hopped . | . . Cave-ins Triggered . | . . Exploration Rate (%) 32 | 2 62 Regions Visited 1 Branch Regions . Pre-discovered Areas . | . . Known Exits Taken . | . . Unknown Exits Taken 1 | 1 . Scrap Searched . | . . Spaces Dug . | . . Terrain Destroyed . | . . Melee . | . . Projectile . | . . AOE . | . . Terrain Rammed . | . . Walls Destroyed . | . . Machines Disabled . | . . Actions | -11 -10 --------- Run | Yrd Mat Total 545 | . 545 Wait 128 | . 128 Move 339 | . 339 Hop . | . . Pick Up 6 | . 6 Fast Attach 4 | . 4 Attach 1 | . 1 Detach 1 | . 1 Swap 6 | . 6 Drop 6 | . 6 Fire 51 | . 51 Melee 3 | . 3 Ram . | . . Kick . | . . Crush . | . . Escape Stasis . | . . Rewire . | . . Trap . | . . Miscellaneous . | . . Route ------- -11/Scrapyard -10/Materials (discovered 3 exits: [*Mat x2] / [*Min]) History --------- Turn | Location | Event 1 | -11/Scrapyard | Discovered new exit (range 0) 1 | -11/Scrapyard | Entered Materials 172 | -10/Materials | Discovered new exit (range 5) 314 | -10/Materials | Build established: Mutant 509 | -10/Materials | Discovered new exit (range 10) 669 | -10/Materials | Discovered new exit (range 15) 781 | -10/Materials | Lost 3 parts (1p2w) 801 | -10/Materials | Core integrity fell below 50% 840 | -10/Materials | Core integrity fell below 20% 855 | -10/Materials | Destroyed by G-34 Mercenary with Small Laser Last Messages --------------- 00540_ Connecting with Recycling Unit... >>Recycling(Report) Matter reserves: 0 Inventory: Hvy. EM Pulse Gun (50%) Particle Gun (40%) Mni. Grenade Launcher (30%) 00560_ K-01 Serf cleans the Matter Pump. 00581_ K-01 Serf cleans the Processing Tank. 00605_ K-01 Serf cleans the Matter Pump. 00633_ K-01 Serf cleans the Processing Tank. 00654_ O-16 Technician: "IFF HANDSHAKE FAILED. SECURING TERMINAL." 00657_ ALERT: Hostiles spotted, dispatching reinforcements to Terminal M007. 00669_ EXIT=FOUND 00720_ Lgt. Assault Rifle destroyed. 00744_ Sml. Laser destroyed. 00745_ Acquired 46 matter. 00750_ Lgt. Nuclear Core destroyed. 00784_ Lgt. Treads destroyed. 00848_ Acquired Hammer. Map ----- +----------------------------------------------------+ | | | | | | | | | | | | | | | | | | | | | | | | | ????????????????????????????????????????????????? | | ????????????????????????????????????????????????? | | ????????????????????????????????????????????????? | | ????????????????????????????????????????????????? | | ????????????????????????????????????????????????? | | ?????????????????###########????????????????????? | | ?????????????????# = +????????????????????? | | ?????????????????# #????????????????????? | | ?????????????????# #???????#####????????? | | ?????????????????# """ """ #???????# #????????? | | ?????????????????# """ """ #???????# ###????? | | ?????????????????# """ """ #???????# # #????# | | ?????????????????# #???????# ?????# | | ?????????????????#! g@ #???????# ##?????# | | ???????? ############+#####???????# #??????# | | ??????? #?????????# #??????# | | ??????? #?????????# #??????# | | ??????? #?????????# #??????# | | ????????####+##########+#######????# #??????# | | ?????????????????# #????# #??????# | | ?????????????????# ! """"" #????# #??????# | | ?????????????????# """"" #????# ######## | | ?????????????????# """"" #????# # ## | | ?????????????????# #????# # """ ## | | ?????????????????###########+##????# # "R" # | | ?????????????????? ????????# #?????# # " " # | | ????????????????? "T???????# #?????# + # | | ????????????????# ?????# #?????# # # | | ????????????????? ????# #?????# # = # | | ????????????????+ ** ???# #????## ######## | | ????????????????# * ??# ###### ####### | | ????????????????# ## | | ????????????????# + | | ?????????????????????###### | | ??????????????? ########### ##### ####### | | ?????????????? #######+#####???# | | ?????????????? # #???# | | ?????????????? # #???# | +----------------------------------------------------+ Best States ------------- Heat Dissipation 25 Energy Generation 14 Energy Capacity 250 Matter Stores 300 Matter Capacity 300 Sight Range 16 Terrain Scan Density 10 Additional Mass Support 6 Evasion (%) 55 Targeting Accuracy 5 Recoil Reduction 2 Item Schematics ----------------- None Robot Schematics ------------------ None Fabricated ------------ Nothing Alien Tech Used ----------------- None Achievements -------------- None Challenges ------------ None Game ------ Seed WeaponIonicDrive Manual? 0 Play Time 00:06:45 Cumulative 115.6 hours Start 2024.04.10 @ 23:05:21 End 2024.04.10 @ 23:11:42 Sessions 1 Manual Loads 0 Difficulty Rogue Special Mode None Game No. 186 Rogue 182 Adventurer 0 Explorer 4 Win Type - Total 0 Types 0/0/0/0/0/0/0/0/0 Lore% 25 Gallery% 42 Achievement% 33 Wizard Run 0 Options --------- Layout 1 ASCII 0 Keyboard 1 Movement Arrows Keybinds 0 Fullscreen 2 Font 32/SmallcapsGlow Map View 130x35 Zoom Use 0% Tactical HUD 1 Map Filters NONE Filters NONE Steam 1 RUN: 23676f24-dfb0-4366-9f5c-ceab6168849c